bitfinex-derivatives/quotes_BTCF0:USTF0_20241213
["timestamp","ask_amount","ask_price","bid_price","bid_amount"]
[1734119353854,0.53745714,101440.0,101430.0,0.5072967]
[1734119354051,0.3608,101440.0,101430.0,0.5072967]
[1734119354455,0.56695153,101440.0,101430.0,0.5072967]
[1734119354649,0.3608,101440.0,101430.0,0.5072967]
[1734119354850,0.3613,101440.0,101430.0,0.41388926]
[1734119355245,0.56745153,101440.0,101430.0,0.41388926]
[1734119356050,0.56695153,101440.0,101430.0,0.5072967]
[1734119356251,0.56695153,101440.0,101430.0,0.41388926]
[1734119356653,0.56695153,101440.0,101430.0,0.5072967]
[1734119356856,0.56745153,101440.0,101430.0,0.5072967]
[1734119358858,0.56695153,101440.0,101430.0,0.5072967]
[1734119361862,0.90345327,101450.0,101440.0,0.049289]
[1734119362168,0.4617,101450.0,101440.0,0.64269644]
[1734119362466,0.4617,101450.0,101440.0,0.14269644]
[1734119362858,0.4612,101450.0,101440.0,0.64269644]
[1734119363057,0.4612,101450.0,101440.0,0.14269644]
[1734119363261,0.3608,101450.0,101440.0,0.14269644]
[1734119363461,0.3608,101450.0,101440.0,0.67829644]
[1734119363661,0.3608,101450.0,101440.0,0.17829644]
[1734119363963,0.3613,101450.0,101440.0,0.67829644]
[1734119364482,0.53830314,101450.0,101440.0,0.67829644]
[1734119364962,0.17700314,101450.0,101440.0,0.67829644]
[1734119365959,0.17750314,101450.0,101440.0,0.67829644]
[1734119366169,0.53830314,101450.0,101440.0,0.67829644]
[1734119366863,0.53780314,101450.0,101440.0,0.67829644]
[1734119367865,0.53830314,101450.0,101440.0,0.67829644]
[1734119368867,0.53780314,101450.0,101440.0,0.67829644]
[1734119369860,0.53830314,101450.0,101440.0,0.67829644]
[1734119371162,0.53830314,101450.0,101440.0,0.70727872]
[1734119371469,0.53830314,101450.0,101440.0,0.73997872]
[1734119371862,0.53780314,101450.0,101440.0,0.73997872]
[1734119372357,0.32446677,101450.0,101440.0,1.10077872]
[1734119372565,0.32448536,101450.0,101440.0,1.10077872]
[1734119372763,0.32448536,101450.0,101440.0,1.12007574]
[1734119374368,0.14748222,101450.0,101440.0,1.12007574]
[1734119376065,0.14748222,101450.0,101440.0,0.99768602]
[1734119376270,0.14748222,101450.0,101440.0,1.12007574]
[1734119377160,0.26539531,101450.0,101440.0,1.12007574]
[1734119377670,0.14748222,101450.0,101440.0,0.75927574]
[1734119377872,0.14748222,101450.0,101440.0,0.56858602]
[1734119378066,0.0705,101450.0,101440.0,0.56858602]
[1734119378267,0.1029,101450.0,101440.0,0.56858602]
[1734119378669,0.4637,101450.0,101440.0,0.56858602]
[1734119378866,0.4637,101450.0,101440.0,0.62978088]
[1734119379074,0.61109197,101450.0,101440.0,0.62978088]
[1734119379269,0.61109197,101450.0,101440.0,0.56858602]
[1734119379470,0.78796233,101450.0,101440.0,0.56858602]
[1734119379670,0.73385228,101450.0,101440.0,0.56858602]
[1734119379872,0.64057036,101450.0,101440.0,0.56858602]
[1734119380069,0.83726494,101450.0,101440.0,0.56858602]
[1734119380479,0.68985436,101450.0,101440.0,0.56858602]
[1734119381276,0.83727678,101450.0,101440.0,0.56858602]
[1734119381977,0.78799278,101450.0,101440.0,0.56858602]
[1734119382178,0.61112242,101450.0,101440.0,0.56858602]
[1734119384766,0.78799278,101450.0,101440.0,0.56858602]
[1734119387984,0.9305587,101450.0,101440.0,0.549289]
[1734119388169,0.9305587,101450.0,101440.0,0.5]
[1734119388374,0.9305587,101450.0,101430.0,0.42274062]
[1734119388375,0.049289,101440.0,101430.0,0.42274062]
[1734119388571,0.7365478,101440.0,101430.0,0.42274062]
[1734119388780,0.6804316,101440.0,101430.0,0.07061224]
[1734119388977,0.6804316,101440.0,101430.0,0.57111224]
[1734119389276,0.6804316,101440.0,101430.0,0.07111224]
[1734119389669,0.6804316,101440.0,101430.0,0.57111224]
[1734119390077,0.6804316,101440.0,101430.0,0.07061224]
[1734119390379,0.6804316,101440.0,101430.0,0.57061224]
[1734119391182,0.6804316,101440.0,101430.0,0.57111224]
[1734119391979,0.6804316,101440.0,101430.0,0.57061224]
[1734119392374,0.82789355,101440.0,101430.0,0.57061224]
[1734119392981,0.82789355,101440.0,101430.0,0.57111224]
[1734119393986,0.82789355,101440.0,101430.0,0.57061224]
[1734119395086,0.82789355,101440.0,101430.0,0.57111224]
[1734119397376,0.65083287,101440.0,101430.0,0.57111224]
[1734119397986,0.65083287,101440.0,101430.0,0.57061224]
[1734119399183,0.68004615,101440.0,101430.0,0.57061224]
[1734119399379,0.85710683,101440.0,101430.0,0.57061224]
[1734119400181,0.68004615,101440.0,101430.0,0.57061224]
[1734119400887,0.77089248,101440.0,101420.0,0.5]
[1734119401088,0.77089248,101440.0,101420.0,0.549798]
[1734119401089,0.78223944,101430.0,101420.0,0.549798]
[1734119401390,0.78223944,101430.0,101420.0,0.049798]
[1734119401590,0.78223944,101430.0,101420.0,0.549798]
[1734119401889,0.78223944,101430.0,101420.0,0.049798]
[1734119402086,0.78223944,101430.0,101420.0,0.049298]
[1734119402391,0.72099184,101430.0,101420.0,0.549298]
[1734119402584,0.72099184,101430.0,101420.0,0.049298]
[1734119402884,0.72099184,101430.0,101420.0,0.549298]
[1734119403094,0.72099184,101430.0,101420.0,0.549798]
[1734119403992,0.72099184,101430.0,101420.0,0.549298]
[1734119404989,0.72099184,101430.0,101420.0,0.549798]
[1734119405992,0.78223944,101430.0,101420.0,0.549798]
[1734119406184,0.72099184,101430.0,101420.0,0.549798]
[1734119407188,0.89805252,101430.0,101420.0,0.549798]
[1734119407895,0.75070228,101430.0,101420.0,0.549798]
[1734119409788,0.81194988,101430.0,101420.0,0.549798]
[1734119410986,1.17319748,101430.0,101420.0,0.26372015]
[1734119411193,1.20248556,101430.0,101400.0,0.049307]
[1734119411391,0.68002834,101410.0,101400.0,0.549307]
[1734119411588,0.68002834,101410.0,101390.0,0.05079019]
[1734119411889,0.65053191,101400.0,101390.0,0.55079019]
[1734119412089,0.85694831,101400.0,101390.0,0.55079019]
[1734119412298,0.85694831,101400.0,101380.0,0.63775946]
[1734119412499,0.58931036,101390.0,101380.0,0.13775946]
[1734119412796,0.58931036,101390.0,101380.0,0.63775946]
[1734119413197,0.62147395,101390.0,101380.0,0.13775946]
[1734119413395,0.62147395,101390.0,101380.0,0.63775946]
[1734119413799,0.62147395,101390.0,101380.0,0.13775946]
[1734119414000,0.76890309,101390.0,101380.0,0.06875946]
[1734119414301,0.76890309,101390.0,101380.0,0.56875946]
[1734119414598,0.83630155,101390.0,101380.0,0.56875946]
[1734119414795,0.8954683,101390.0,101380.0,0.56875946]
[1734119415394,0.8954683,101390.0,101380.0,0.5]
[1734119415594,0.75425333,101390.0,101380.0,0.5]
[1734119415795,0.75425333,101390.0,101370.0,0.58353953]
[1734119416006,0.6212156,101380.0,101370.0,0.04943953]
[1734119416194,0.6212156,101380.0,101370.0,0.00011853]
[1734119416391,0.76864474,101380.0,101370.0,0.50011853]
[1734119416596,0.76864474,101380.0,101370.0,0.00011853]
[1734119419404,0.65095833,101380.0,101370.0,0.00011853]
[1734119420102,0.65095833,101380.0,101370.0,0.00061853]
[1734119420601,0.65095833,101380.0,101360.0,0.88857609]
[1734119420602,0.049323,101370.0,101360.0,0.75305097]
[1734119420793,0.62096598,101370.0,101360.0,0.75305097]
[1734119424215,0.86180631,101370.0,101360.0,0.23376984]
[1734119424401,0.86180631,101370.0,101360.0,0.0561658]
[1734119424402,1.02668949,101370.0,101360.0,0.0561658]
[1734119424609,1.02668949,101370.0,101340.0,0.617235]
[1734119424808,0.50354419,101350.0,101340.0,0.63622217]
[1734119425803,0.410133,101350.0,101340.0,0.63622217]
[1734119426006,0.56608299,101360.0,101340.0,0.74898434]
[1734119426206,0.47810445,101370.0,101350.0,0.14274419]
[1734119426398,0.11730445,101370.0,101360.0,0.21083919]
[1734119426802,0.11730445,101370.0,101360.0,0.71083919]
[1734119427201,0.11730445,101370.0,101360.0,0.21083919]
[1734119427401,0.67633489,101380.0,101360.0,0.21083919]
[1734119427601,0.4116013,101380.0,101360.0,0.71083919]
[1734119427809,0.4116013,101380.0,101370.0,0.085023]
[1734119428012,0.4116013,101380.0,101370.0,0.085523]
[1734119428201,0.4116013,101380.0,101370.0,0.585523]
[1734119428507,0.52890575,101380.0,101370.0,0.585523]
[1734119429006,0.3622803,101380.0,101370.0,0.67893419]
[1734119430908,0.4115983,101380.0,101370.0,0.585523]
[1734119431699,0.62083364,101380.0,101370.0,0.51969021]
[1734119431903,0.52742245,101380.0,101370.0,0.56901321]
[1734119432104,0.52742245,101380.0,101370.0,0.60501321]
[1734119432506,0.52742245,101380.0,101370.0,0.55569021]
[1734119433212,0.52742245,101380.0,101370.0,0.51969021]
[1734119433509,0.52742245,101380.0,101370.0,0.37172252]
[1734119434406,0.52742245,101380.0,101370.0,0.42104752]
[1734119435310,0.52742245,101380.0,101370.0,0.37172252]
[1734119435514,0.56052245,101380.0,101370.0,0.37172252]
[1734119435707,0.56052245,101380.0,101370.0,0.42104552]
[1734119436931,0.51120445,101380.0,101370.0,0.42104552]
[1734119437108,0.51120445,101380.0,101370.0,0.54745671]
[1734119437109,0.47810445,101380.0,101370.0,0.54745671]
[1734119437307,0.3608,101380.0,101370.0,0.54745671]
[1734119438614,0.47810445,101380.0,101370.0,0.54745671]
[1734119439209,0.34578914,101380.0,101370.0,0.54745671]
[1734119439515,0.46309359,101380.0,101370.0,0.54745671]
[1734119442112,0.46309359,101380.0,101370.0,0.45404552]
[1734119445320,0.46309359,101380.0,101370.0,0.473652]
[1734119447417,0.3608,101380.0,101370.0,0.45404552]
[1734119449809,0.3608,101380.0,101370.0,0.54745671]
[1734119450216,0.62603359,101390.0,101380.0,0.049316]
[1734119450517,0.47860445,101390.0,101380.0,0.549316]
[1734119450917,0.47860445,101390.0,101380.0,0.049316]
[1734119451120,0.47810445,101390.0,101380.0,0.549316]
[1734119451425,0.47810445,101390.0,101380.0,0.049316]
[1734119451726,0.47810445,101390.0,101380.0,0.549316]
[1734119452022,0.47860445,101390.0,101380.0,0.549316]
[1734119452220,0.11780445,101390.0,101380.0,0.64272719]
[1734119452419,0.0005,101390.0,101380.0,1.00352719]
[1734119452615,0.0005,101390.0,101380.0,1.07112719]
[1734119453017,0.51438433,101410.0,101390.0,0.04931]
[1734119453311,0.51438433,101410.0,101400.0,0.049307]
[1734119453718,0.51438433,101410.0,101400.0,0.549307]
[1734119454120,0.51438433,101410.0,101400.0,0.049307]
[1734119454315,0.51438433,101410.0,101400.0,0.549307]
[1734119454523,0.51438433,101410.0,101400.0,0.64271819]
[1734119454723,0.47958433,101410.0,101400.0,0.64271819]
[1734119454924,0.36227988,101410.0,101400.0,0.549307]
[1734119455224,0.3608,101410.0,101400.0,0.64271819]
[1734119458121,0.58110445,101420.0,101400.0,0.64271819]
[1734119458325,0.58110445,101420.0,101410.0,0.14271319]
[1734119458738,0.58110445,101420.0,101410.0,0.549302]
[1734119458927,0.58110445,101420.0,101410.0,0.049302]
[1734119459444,0.58110445,101420.0,101410.0,0.549302]
[1734119459626,0.58110445,101420.0,101410.0,0.049302]
[1734119459928,0.58110445,101420.0,101410.0,0.549302]
[1734119460524,0.4638,101420.0,101410.0,0.549302]
[1734119460925,0.513097,101420.0,101410.0,0.549302]
[1734119464032,0.513597,101420.0,101410.0,0.549302]
[1734119466336,0.60700819,101420.0,101410.0,0.5]
[1734119466636,0.049302,101410.0,101400.0,0.56872127]
[1734119466838,0.62081764,101410.0,101400.0,0.06872127]
[1734119467226,0.62081764,101410.0,101400.0,0.56872127]
[1734119467428,0.62081764,101410.0,101400.0,0.06872127]
[1734119467632,0.52740645,101410.0,101400.0,0.06872127]
[1734119467828,0.52740645,101410.0,101400.0,0.56872127]
[1734119468236,0.52740645,101410.0,101400.0,0.06872127]
[1734119468437,0.52740645,101410.0,101400.0,0.56872127]
[1734119468937,0.52740645,101410.0,101400.0,0.06872127]
[1734119469135,0.52740645,101410.0,101400.0,0.56872127]
[1734119476637,0.67483559,101410.0,101400.0,0.56872127]
[1734119479541,0.55753114,101410.0,101400.0,0.56872127]
[1734119481040,0.50822914,101410.0,101400.0,0.66213246]
[1734119481253,0.62618173,101410.0,101400.0,0.69893246]
[1734119481540,0.47875259,101410.0,101400.0,0.69893246]
[1734119481947,0.47875259,101410.0,101400.0,0.73193246]
[1734119482746,0.47875259,101410.0,101400.0,0.63852127]
[1734119484441,0.52805459,101410.0,101400.0,0.60552127]
[1734119484747,0.62618173,101410.0,101400.0,0.60552127]
[1734119486047,0.55753114,101410.0,101400.0,0.60552127]
[1734119487640,0.8278573,101410.0,101390.0,0.5005]
[1734119487951,0.72258725,101400.0,101390.0,0.049812]
[1734119488153,0.62917606,101400.0,101390.0,0.049312]
[1734119488346,0.62917606,101400.0,101390.0,0.549312]
[1734119488544,0.62917606,101400.0,101390.0,0.0664194]
[1734119488743,0.72258725,101400.0,101390.0,0.049312]
[1734119488947,0.72258725,101400.0,101390.0,0.549312]
[1734119489147,0.72258725,101400.0,101390.0,0.049812]
[1734119489549,0.72258725,101400.0,101390.0,0.549812]
[1734119489944,0.62917606,101400.0,101390.0,0.549812]
[1734119490252,0.62917606,101400.0,101390.0,0.64272319]
[1734119490253,0.66302169,101400.0,101390.0,0.64272319]
[1734119490445,0.47875263,101400.0,101390.0,0.67932319]
[1734119491357,0.47875263,101400.0,101390.0,0.586412]
[1734119491544,0.47875263,101400.0,101390.0,0.6037946]
[1734119494154,0.47875263,101400.0,101390.0,0.6032946]
[1734119495753,0.62622169,101400.0,101390.0,0.6032946]
[1734119496149,0.47875263,101400.0,101390.0,0.6032946]
[1734119496550,0.62622169,101400.0,101390.0,0.6032946]
[1734119498651,0.76893988,101400.0,101390.0,0.6032946]
[1734119498841,0.80303988,101400.0,101390.0,0.6032946]
[1734119499155,0.83823988,101400.0,101390.0,0.6032946]
[1734119501750,0.72028725,101400.0,101390.0,0.5173826]
[1734119502553,0.72028725,101400.0,101390.0,0.5666946]
[1734119504148,0.6603285,101400.0,101390.0,0.66010579]
[1734119504343,0.6262285,101400.0,101390.0,0.69720579]
[1734119504950,0.6262285,101400.0,101390.0,0.6037946]
[1734119505545,0.6262285,101400.0,101390.0,0.69720579]
[1734119505753,0.11795944,101400.0,101390.0,1.05800579]
[1734119508063,0.6262285,101410.0,101400.0,0.049307]
[1734119508451,0.6262285,101410.0,101400.0,0.549307]
[1734119508655,0.6262285,101410.0,101400.0,0.049307]
[1734119509052,0.47875944,101410.0,101400.0,0.549307]
[1734119509454,0.47875944,101410.0,101400.0,0.049307]
[1734119509858,0.47875944,101410.0,101400.0,0.549307]
[1734119510162,0.47875944,101410.0,101400.0,0.049307]
[1734119510555,0.47875944,101410.0,101400.0,0.549307]
[1734119514962,0.47875944,101410.0,101400.0,0.64271819]
[1734119521265,0.47875944,101410.0,101400.0,0.610565]
[1734119527568,0.47875944,101410.0,101400.0,0.63020474]
[1734119528265,0.47875944,101410.0,101400.0,0.69146274]
[1734119528873,0.47875944,101410.0,101400.0,0.63020474]
[1734119530573,0.11795944,101410.0,101400.0,0.69146274]
[1734119530872,0.14746906,101430.0,101410.0,0.049302]
[1734119531071,0.77117178,101440.0,101430.0,0.049292]
[1734119531274,0.59425681,101440.0,101430.0,0.11055]
[1734119531481,0.59425681,101440.0,101430.0,0.61055]
[1734119531676,0.07367942,101440.0,101430.0,1.032608]
[1734119531972,0.04770833,101450.0,101430.0,1.032608]
[1734119531973,0.01230833,101450.0,101440.0,0.049287]
[1734119532169,0.01230833,101450.0,101440.0,0.570603]
[1734119532370,0.40720833,101460.0,101450.0,0.049282]
[1734119532567,0.40720833,101460.0,101450.0,0.11054]
[1734119532769,0.40720833,101460.0,101450.0,0.61054]
[1734119533184,0.40720833,101460.0,101450.0,0.14252751]
[1734119533378,0.4072031,101460.0,101450.0,0.549282]
[1734119535075,0.4072031,101460.0,101450.0,0.64252751]
[1734119535671,0.4072031,101460.0,101450.0,0.549282]
[1734119536067,0.63066902,101460.0,101440.0,0.5]
[1734119536273,0.53922851,101450.0,101440.0,0.549287]
[1734119536475,0.60081761,101450.0,101430.0,0.049291]
[1734119536671,0.445987,101440.0,101430.0,0.049291]
[1734119537077,0.445987,101440.0,101430.0,0.549291]
[1734119537386,0.446487,101440.0,101430.0,0.049291]
[1734119537577,0.446487,101440.0,101430.0,0.549291]
[1734119538183,0.445987,101440.0,101430.0,0.549291]
[1734119538583,0.53923251,101440.0,101430.0,0.5]
[1734119538885,0.049292,101430.0,101420.0,0.56526223]
[1734119539094,0.444492,101430.0,101420.0,0.56526223]
[1734119539383,0.444492,101430.0,101420.0,0.06526223]
[1734119539577,0.444492,101430.0,101420.0,0.56526223]
[1734119539882,0.444492,101430.0,101420.0,0.06526223]
[1734119540180,0.444492,101430.0,101420.0,0.56526223]
[1734119540484,0.444492,101430.0,101420.0,0.06526223]
[1734119540682,0.0344,101430.0,101420.0,0.53886821]
[1734119540888,0.0005,101440.0,101430.0,0.049292]
[1734119541181,0.0005,101440.0,101430.0,0.64253751]
[1734119541688,0.0005,101440.0,101430.0,0.50333751]
[1734119541990,0.0005,101440.0,101430.0,0.64253751]
[1734119545683,0.0005,101440.0,101430.0,0.549292]
[1734119545989,0.3613,101440.0,101430.0,0.549292]
[1734119547389,0.3608,101440.0,101430.0,0.549292]
[1734119548385,0.51984398,101450.0,101440.0,0.049287]
[1734119548590,0.3613,101450.0,101440.0,0.14253251]
[1734119548792,0.3613,101450.0,101440.0,0.68173251]
[1734119548997,0.3613,101450.0,101440.0,0.088487]
[1734119549195,0.3608,101450.0,101440.0,0.088487]
[1734119549395,0.3608,101450.0,101440.0,0.588487]
[1734119549605,0.3608,101450.0,101440.0,0.088487]
[1734119549903,0.3608,101450.0,101440.0,0.588487]
[1734119550298,0.3613,101450.0,101440.0,0.088487]
[1734119550502,0.3613,101450.0,101440.0,0.588487]
[1734119550698,0.3613,101450.0,101440.0,0.088487]
[1734119551004,0.3613,101450.0,101440.0,0.588487]
[1734119551205,0.3608,101450.0,101440.0,0.588487]
[1734119551397,0.3608,101450.0,101440.0,0.088487]
[1734119551704,0.3608,101450.0,101440.0,0.60401706]
[1734119552101,0.3608,101450.0,101440.0,0.10401706]
[1734119552308,0.3613,101450.0,101440.0,0.60401706]
[1734119552705,0.3613,101450.0,101440.0,0.10401706]
[1734119553003,0.399,101450.0,101440.0,0.60401706]
[1734119553399,0.399,101450.0,101440.0,0.10401706]
[1734119553600,0.399,101450.0,101440.0,0.60401706]
[1734119554304,0.3985,101450.0,101440.0,0.60401706]
[1734119554501,0.3608,101450.0,101440.0,0.60401706]
[1734119554705,0.08972305,101460.0,101450.0,0.049282]
[1734119554901,0.00147907,101460.0,101450.0,0.14252751]
[1734119555098,0.00147907,101460.0,101450.0,0.64252751]
[1734119555302,0.00197907,101460.0,101450.0,0.64252751]
[1734119555502,0.00197907,101460.0,101450.0,0.14252751]
[1734119555701,0.00197907,101460.0,101450.0,0.64252751]
[1734119556204,0.00147907,101460.0,101450.0,0.14252751]
[1734119556407,0.00147907,101460.0,101450.0,0.64252751]
[1734119556610,0.00147907,101460.0,101450.0,0.549282]
[1734119556799,0.00147907,101460.0,101450.0,0.049282]
[1734119557110,0.00147907,101460.0,101450.0,0.549282]
[1734119557313,0.00197907,101460.0,101450.0,0.549282]
[1734119557609,0.00197907,101460.0,101450.0,0.049282]
[1734119558005,0.00197907,101460.0,101450.0,0.549282]
[1734119558207,0.00147907,101460.0,101450.0,0.549282]
[1734119558598,0.08972305,101460.0,101450.0,0.549282]
[1734119559203,0.09022305,101460.0,101450.0,0.549282]
[1734119560313,0.08972305,101460.0,101450.0,0.549282]
[1734119563201,0.08824398,101460.0,101450.0,0.64252751]
[1734119563508,0.44954398,101470.0,101450.0,0.71982751]
[1734119563713,0.08874398,101470.0,101460.0,0.18132351]
[1734119564217,0.08824398,101470.0,101460.0,0.68132351]
[1734119564513,0.08824398,101470.0,101460.0,0.18132351]
[1734119564714,0.08824398,101470.0,101460.0,0.68132351]
[1734119565308,0.08874398,101470.0,101460.0,0.68132351]
[1734119566218,0.08824398,101470.0,101460.0,0.68132351]
[1734119567216,0.08874398,101470.0,101460.0,0.68132351]
[1734119567413,0.0005,101470.0,101460.0,0.68132351]
[1734119567608,0.44904398,101480.0,101470.0,0.049273]
[1734119567609,0.08835244,101480.0,101470.0,0.049273]
[1734119567819,0.08835244,101480.0,101470.0,0.14251851]
[1734119568121,0.44915244,101490.0,101480.0,0.049268]
[1734119568311,0.49841544,101490.0,101470.0,0.049269]
[1734119568511,0.36955997,101480.0,101470.0,0.049269]
[1734119568717,0.3608,101480.0,101470.0,0.64251451]
[1734119569115,0.3608,101480.0,101470.0,0.14251451]
[1734119569314,0.3608,101480.0,101470.0,0.64251451]
[1734119570226,0.3613,101480.0,101470.0,0.64251451]
[1734119570527,0.0005,101480.0,101470.0,1.00331451]
[1734119570715,0.18835244,101500.0,101480.0,0.049268]
[1734119570915,0.18835244,101500.0,101490.0,0.17890851]
[1734119571219,0.18835244,101500.0,101490.0,0.67890851]
[1734119571515,0.1,101500.0,101490.0,0.17890851]
[1734119571925,0.1,101500.0,101490.0,0.67890851]
[1734119572113,0.1,101500.0,101490.0,0.17890851]
[1734119572515,0.1,101500.0,101490.0,0.67890851]
[1734119572714,0.1,101500.0,101490.0,0.17890851]
[1734119573022,0.1,101500.0,101490.0,0.67890851]
[1734119573923,0.1,101500.0,101490.0,1.03970851]
[1734119574224,0.1,101500.0,101490.0,1.43295402]
[1734119574420,0.48655244,101520.0,101510.0,0.049253]
[1734119574617,0.48655244,101520.0,101510.0,0.14249851]
[1734119574811,0.48655244,101520.0,101510.0,0.64249851]
[1734119575019,0.48655244,101520.0,101510.0,0.18039851]
[1734119575317,0.48655244,101520.0,101510.0,0.68039851]
[1734119575521,0.44915244,101520.0,101510.0,0.68039851]
[1734119575720,0.45063048,101530.0,101510.0,0.84119851]
[1734119575920,0.45063048,101530.0,101510.0,1.22954916]
[1734119576122,0.45063048,101530.0,101510.0,1.11929851]
[1734119577322,0.45063048,101530.0,101520.0,0.09324551]
[1734119577724,0.59311999,101530.0,101520.0,0.5]
[1734119577922,0.049248,101520.0,101510.0,0.51609668]
[1734119578122,0.489048,101520.0,101510.0,0.51609668]
[1734119578324,0.489048,101520.0,101510.0,0.01609668]
[1734119578627,0.489048,101520.0,101510.0,0.5]
[1734119578829,0.489048,101520.0,101500.0,0.99124551]
[1734119579224,0.489048,101520.0,101500.0,0.49124551]
[1734119579417,0.489048,101520.0,101500.0,0.99124551]
[1734119579823,0.049253,101510.0,101500.0,0.99124551]
[1734119580326,0.049253,101510.0,101500.0,1.00680746]
[1734119580828,0.57740344,101520.0,101500.0,1.05606446]
[1734119581530,0.57740344,101520.0,101500.0,0.69526446]
[1734119582130,0.57740344,101520.0,101500.0,1.05606446]
[1734119583534,0.57740344,101520.0,101510.0,0.09324551]
[1734119583930,0.57740344,101520.0,101510.0,0.59324551]
[1734119584132,0.57740344,101520.0,101510.0,0.09324551]
[1734119584432,0.57790344,101520.0,101510.0,0.59324551]
[1734119584827,0.57790344,101520.0,101510.0,0.09324551]
[1734119585021,0.57790344,101520.0,101510.0,0.59324551]
[1734119585228,0.57790344,101520.0,101510.0,0.64249851]
[1734119587133,0.52865244,101520.0,101510.0,0.64249851]
[1734119587837,0.48845244,101520.0,101510.0,0.64249851]
[1734119590843,0.53770044,101520.0,101510.0,0.5]
[1734119591036,0.57470044,101520.0,101510.0,0.64249851]
[1734119591341,0.57470044,101520.0,101510.0,0.14249851]
[1734119591342,0.69207757,101520.0,101510.0,0.14249851]
[1734119591744,0.69207757,101520.0,101510.0,0.64249851]
[1734119591943,0.69207757,101520.0,101510.0,0.14249851]
[1734119592445,0.69207757,101520.0,101510.0,0.64249851]
[1734119592640,0.69207757,101520.0,101510.0,0.14249851]
[1734119592838,0.69207757,101520.0,101510.0,0.64249851]
[1734119593135,0.64282957,101520.0,101510.0,0.64249851]
[1734119593639,0.55447713,101520.0,101510.0,0.5]
[1734119593940,0.75119419,101520.0,101500.0,0.58483985]
[1734119594142,0.2055274,101510.0,101500.0,0.58483985]
[1734119594342,0.2055274,101510.0,101500.0,0.17808536]
[1734119594649,0.2055274,101510.0,101500.0,0.67808536]
[1734119594650,0.08815027,101510.0,101500.0,0.67808536]
[1734119594845,0.08815027,101510.0,101500.0,0.53888536]
[1734119595343,0.2055274,101510.0,101500.0,1.03888536]
[1734119596633,0.09480305,101530.0,101520.0,0.049248]
[1734119596831,0.09332501,101530.0,101520.0,0.23573902]
[1734119597137,0.09332501,101530.0,101520.0,0.73573902]
[1734119597337,0.0005,101530.0,101520.0,0.59653902]
[1734119597746,0.0005,101530.0,101520.0,1.09653902]
[1734119598134,0.0005,101530.0,101520.0,1.00329351]
[1734119598445,0.4004,101540.0,101530.0,0.049244]
[1734119598630,0.4004,101540.0,101530.0,0.18288951]
[1734119598933,0.4004,101540.0,101530.0,0.68288951]
[1734119599339,0.0396,101540.0,101530.0,0.54368951]
[1734119599840,0.0396,101540.0,101530.0,1.04368951]
[1734119600139,0.70314497,101560.0,101540.0,0.049239]
[1734119600342,0.70314497,101560.0,101550.0,0.09324551]
[1734119600640,0.70314497,101560.0,101550.0,0.59324551]
[1734119601036,0.70314497,101560.0,101550.0,0.09324551]
[1734119601238,0.19066161,101570.0,101550.0,1.09652502]
[1734119601441,0.01374664,101570.0,101560.0,0.14247451]
[1734119601642,0.01374664,101570.0,101560.0,0.18017451]
[1734119601943,0.37454664,101570.0,101560.0,0.586929]
[1734119602135,0.37454664,101570.0,101560.0,0.086929]
[1734119602538,0.37454664,101570.0,101560.0,0.586929]
[1734119602839,0.37454664,101570.0,101560.0,0.086929]
[1734119603034,0.41184664,101570.0,101560.0,0.086929]
[1734119603241,0.41184664,101570.0,101560.0,0.586929]
[1734119603642,0.41184664,101570.0,101560.0,0.086929]
[1734119604049,0.41184664,101570.0,101560.0,0.586929]
[1734119604243,0.41184664,101570.0,101560.0,0.086929]
[1734119604645,0.41184664,101570.0,101560.0,0.586929]
[1734119604845,0.55431615,101570.0,101560.0,0.549229]
[1734119605143,0.46107064,101570.0,101560.0,0.549229]
[1734119605339,0.49917064,101570.0,101560.0,0.549229]
[1734119606648,0.48690146,101570.0,101560.0,0.549229]
[1734119608352,0.43767746,101570.0,101560.0,0.549229]
[1734119608750,0.39957746,101570.0,101560.0,0.64247451]
[1734119609948,0.00147746,101570.0,101560.0,0.64247451]
[1734119610151,0.4001,101580.0,101570.0,0.049224]
[1734119610352,0.4001,101580.0,101570.0,0.14246951]
[1734119610552,0.4001,101580.0,101570.0,0.64246951]
[1734119610960,0.4001,101580.0,101570.0,0.14246951]
[1734119611163,0.4001,101580.0,101570.0,0.049224]
[1734119611363,0.4001,101580.0,101570.0,0.549224]
[1734119611558,0.4001,101580.0,101570.0,0.049224]
[1734119611954,0.4001,101580.0,101570.0,0.549224]
[1734119612156,0.4001,101580.0,101570.0,0.14246951]
[1734119612351,0.3608,101580.0,101570.0,0.14246951]
[1734119612560,0.3608,101580.0,101570.0,0.75352675]
[1734119612763,0.3608,101580.0,101570.0,0.25352675]
[1734119613158,0.3608,101590.0,101580.0,0.049219]
[1734119613366,0.3608,101590.0,101580.0,0.18346451]
[1734119613664,0.3608,101590.0,101580.0,0.72426451]
[1734119613868,0.45404551,101590.0,101580.0,0.049219]
[1734119614070,0.410014,101590.0,101580.0,0.049219]
[1734119614260,0.410014,101590.0,101580.0,0.549219]
[1734119614465,0.410014,101590.0,101580.0,0.049219]
[1734119614860,0.410014,101590.0,101580.0,0.549219]
[1734119615273,0.410014,101590.0,101580.0,0.049219]
[1734119615661,0.410014,101590.0,101580.0,0.549219]
[1734119615864,0.50325951,101590.0,101580.0,0.049219]
[1734119616068,0.410014,101590.0,101580.0,0.049219]
[1734119618169,0.3608,101590.0,101580.0,0.549219]
[1734119618364,0.3608,101590.0,101580.0,0.049219]
[1734119618568,0.3608,101590.0,101580.0,0.64246451]
[1734119618772,0.4608,101600.0,101590.0,0.049214]
[1734119618968,0.4608,101600.0,101590.0,0.14245951]
[1734119619167,0.4608,101600.0,101590.0,0.64245951]
[1734119619563,0.4608,101600.0,101590.0,0.14245951]
[1734119619765,0.4608,101600.0,101590.0,0.549214]
[1734119620165,0.4608,101600.0,101590.0,0.14245951]
[1734119620567,0.4608,101600.0,101590.0,0.64245951]
[1734119620769,0.4608,101600.0,101590.0,0.14245951]
[1734119621174,0.4608,101600.0,101590.0,0.64245951]
[1734119621370,0.4608,101600.0,101590.0,0.14245951]
[1734119621579,0.4608,101600.0,101590.0,0.64245951]
[1734119622276,0.4608,101600.0,101590.0,0.549214]
[1734119622775,0.55404551,101600.0,101590.0,0.549214]
[1734119623072,0.60325551,101600.0,101590.0,0.549214]
[1734119625575,0.60325551,101600.0,101590.0,0.049214]
[1734119626372,0.60375551,101600.0,101590.0,0.049214]
[1734119626781,0.7506086,101600.0,101590.0,0.049214]
[1734119626969,0.92752357,101600.0,101590.0,0.049214]
[1734119627171,0.78067048,101600.0,101590.0,0.049214]
[1734119627380,0.78017048,101600.0,101590.0,0.049214]